bitfinex-derivatives/quotes_BNBF0:USTF0_20260110
["timestamp","ask_amount","ask_price","bid_price","bid_amount"]
[1768003202062,1.65809826,898.35,896.22,1.671086]
[1768003202261,1.65809826,898.34,896.22,1.671086]
[1768003202558,1.65809826,898.33,896.22,1.671086]
[1768003202762,1.65809826,898.32,896.22,1.671086]
[1768003202960,1.65809826,898.31,896.22,1.671086]
[1768003203256,1.65809826,898.3,896.22,1.671086]
[1768003203460,1.65809826,898.29,896.22,1.671086]
[1768003203658,1.65809826,898.28,896.22,1.671086]
[1768003203960,1.65809826,898.27,896.3,1.671086]
[1768003204160,1.65809826,898.26,896.29,1.671086]
[1768003204362,1.65809826,898.25,896.29,1.671086]
[1768003204559,1.65809826,898.24,896.29,1.671086]
[1768003204762,1.65809826,898.23,896.29,1.671086]
[1768003204962,1.65809826,898.22,896.29,1.671086]
[1768003205162,2.7843621,898.48,896.29,1.671086]
[1768003205163,1.65809826,898.21,896.29,1.671086]
[1768003205362,1.65809826,898.2,896.29,1.671086]
[1768003205561,1.65809826,898.19,896.29,1.671086]
[1768003205759,1.65809826,898.18,896.27,1.671086]
[1768003206058,1.65809826,898.17,896.27,1.671086]
[1768003206260,1.65809826,898.16,896.27,1.671086]
[1768003206460,1.65809826,898.15,896.27,1.671086]
[1768003206662,1.65809826,898.14,896.27,1.671086]
[1768003206861,1.66867727,898.13,896.27,1.671086]
[1768003207062,1.66867727,898.12,896.27,1.671086]
[1768003207264,1.66867727,898.11,896.27,1.671086]
[1768003207562,1.66867727,898.1,896.27,1.671086]
[1768003207761,1.66867727,898.09,896.27,1.671086]
[1768003207964,1.66867727,898.08,896.27,1.671086]
[1768003208163,1.66867727,898.07,896.27,1.671086]
[1768003208362,1.66867727,898.06,896.26,1.671086]
[1768003208563,1.66867727,898.05,896.26,1.671086]
[1768003208762,1.66858392,898.04,896.26,1.671086]
[1768003208963,1.66858392,898.03,896.27,1.671086]
[1768003209169,1.66858392,898.02,896.26,1.671086]
[1768003209368,1.66858392,898.01,896.26,1.671086]
[1768003209567,1.66858392,898.0,896.26,1.671086]
[1768003209766,1.66858392,897.99,896.26,1.671086]
[1768003209966,1.66858392,897.98,896.26,1.671086]
[1768003210268,1.66858392,897.97,896.27,1.671086]
[1768003210467,1.66858392,897.96,896.27,1.671086]
[1768003210666,1.66858392,897.95,896.27,1.671086]
[1768003210866,1.66858392,897.94,896.27,1.671086]
[1768003211067,1.66858392,897.93,896.27,1.671086]
[1768003211267,1.66858392,897.92,896.27,1.671086]
[1768003211469,1.66858392,897.91,896.27,1.671086]
[1768003211668,1.66858392,897.9,896.27,1.671086]
[1768003211869,1.66858392,897.89,896.27,1.671086]
[1768003212072,1.66858392,897.88,896.27,1.671086]
[1768003212273,1.66858392,897.87,896.27,1.671086]
[1768003212471,1.66858392,897.86,896.27,1.671086]
[1768003212670,1.66842717,897.85,896.27,1.671086]
[1768003212870,1.66842717,897.84,896.27,1.671086]
[1768003213070,1.66842717,897.83,896.27,1.671086]
[1768003213269,1.66842717,897.82,896.27,1.671086]
[1768003213470,1.66842717,897.81,896.28,1.671086]
[1768003213769,1.66842717,897.8,896.35,1.671086]
[1768003213971,1.66842717,897.79,896.35,1.671086]
[1768003214173,1.66842717,897.78,896.35,1.671086]
[1768003214370,1.66827868,897.77,896.35,1.671086]
[1768003214569,1.66827868,897.76,896.35,1.671086]
[1768003214770,2.7843621,898.57,896.35,1.671086]
[1768003214771,1.66827868,897.75,896.35,1.671086]
[1768003214974,1.66827868,897.74,896.35,1.671086]
[1768003215172,1.66827868,897.73,896.35,1.671086]
[1768003215472,1.66827868,897.72,896.35,1.671086]
[1768003215676,1.66827868,897.71,896.35,1.671086]
[1768003215875,1.66827868,897.7,896.35,1.671086]
[1768003216077,1.66827868,897.69,896.35,1.671086]
[1768003216375,1.66827868,897.68,896.35,1.671086]
[1768003216575,1.66827868,897.67,896.35,1.671086]
[1768003216872,1.66827868,897.66,896.35,1.671086]
[1768003217071,1.66827868,897.65,896.34,1.671086]
[1768003217276,1.66827868,897.64,896.34,1.671086]
[1768003217575,1.66827868,897.63,896.34,1.671086]
[1768003217776,1.66827868,897.62,896.34,1.671086]
[1768003217974,1.66827868,897.61,896.34,1.671086]
[1768003218173,1.66827868,897.6,896.34,1.671086]
[1768003218474,1.02188552,897.59,896.34,1.671086]
[1768003218674,1.02188552,897.58,896.54,1.11294627]
[1768003218875,1.02188552,897.57,896.54,1.11294627]
[1768003219072,1.02188552,897.56,896.54,1.11294627]
[1768003219373,1.02188552,897.55,896.54,1.11294627]
[1768003219572,1.02188552,897.54,896.54,1.11294627]
[1768003219776,1.02188552,897.53,896.54,1.11294627]
[1768003220076,1.02188552,897.52,896.54,1.11294627]
[1768003220277,1.02188552,897.51,896.54,1.11294627]
[1768003220472,1.02188552,897.5,896.54,1.11294627]
[1768003220673,1.02188552,897.49,896.54,1.11294627]
[1768003220977,1.02188552,897.48,896.54,1.11294627]
[1768003221177,1.02188552,897.47,896.54,1.11294627]
[1768003221376,1.02188552,897.46,896.54,1.11294627]
[1768003221574,1.02188552,897.45,896.54,1.11294627]
[1768003221777,1.02188552,897.44,896.54,1.11294627]
[1768003222072,1.02188552,897.43,896.54,1.11294627]
[1768003222276,1.02188552,897.42,896.54,1.11294627]
[1768003222474,1.02188552,897.41,896.54,1.11294627]
[1768003222674,1.02188552,897.4,896.54,1.11294627]
[1768003222876,1.02188552,897.39,896.54,1.11294627]
[1768003223078,1.02188552,897.38,896.54,1.11294627]
[1768003223274,1.02188552,897.37,896.54,1.11294627]
[1768003223476,1.02188552,897.36,896.54,1.11294627]
[1768003223677,1.02188552,897.35,896.54,1.11294627]
[1768003223877,1.02188552,897.34,896.54,1.11294627]
[1768003224180,1.02201489,897.33,896.54,1.11294627]
[1768003224476,1.02201489,897.32,896.54,1.11294627]
[1768003224775,1.02201489,897.31,896.54,1.11294627]
[1768003224979,1.02201489,897.3,896.54,1.11294627]
[1768003225275,1.02201489,897.29,896.55,1.11294627]
[1768003225479,1.02201489,897.28,896.55,1.11294627]
[1768003225679,1.02201489,897.27,896.55,1.11294627]
[1768003225979,1.02220117,897.26,896.55,1.11294627]
[1768003226181,1.02220117,897.25,896.56,1.11294627]
[1768003226376,1.02220117,897.24,896.56,1.11294627]
[1768003226577,1.02220117,897.23,896.56,1.11294627]
[1768003226776,1.02220117,897.22,896.56,1.11294627]
[1768003226977,1.02220117,897.21,896.56,1.11294627]
[1768003227280,1.02220117,897.2,896.56,1.11294627]
[1768003227579,1.02220117,897.19,896.56,1.11294627]
[1768003227780,1.02220117,897.18,896.56,1.11294627]
[1768003227979,1.02220117,897.17,896.56,1.11294627]
[1768003228176,1.02220117,897.16,896.56,1.11294627]
[1768003228377,1.02220117,897.15,896.56,1.11294627]
[1768003228581,1.02220117,897.14,896.56,1.11294627]
[1768003228777,1.02220117,897.13,896.56,1.11294627]
[1768003229076,2.7843621,898.7,896.68,1.11294627]
[1768003229277,1.02239114,898.69,896.67,1.11294627]
[1768003229477,1.02239114,898.68,896.67,1.11294627]
[1768003229678,1.02239114,898.67,896.67,1.11294627]
[1768003229877,1.02239114,898.66,896.67,1.11294627]
[1768003230181,1.02239114,898.65,896.69,1.11294627]
[1768003230481,1.02239114,898.64,896.7,1.11294627]
[1768003230679,1.02239114,898.63,896.7,1.11294627]
[1768003230879,1.02239114,898.62,896.7,1.11294627]
[1768003231081,1.02239114,898.61,896.69,1.11294627]
[1768003231380,1.02239114,898.6,896.69,1.11294627]
[1768003231579,1.02239114,898.59,896.69,1.11294627]
[1768003231784,1.02239114,898.58,896.69,1.11294627]
[1768003232079,1.02239114,898.57,896.69,1.11294627]
[1768003232378,1.02239114,898.56,896.69,1.11294627]
[1768003232583,1.02159003,898.55,896.69,1.11294627]
[1768003232781,1.02159003,898.54,896.69,1.11294627]
[1768003232983,1.02159003,898.53,896.69,1.11294627]
[1768003233184,1.02159003,898.52,896.68,1.11294627]
[1768003233383,1.02159003,898.51,896.68,1.11294627]
[1768003233582,1.03342832,898.5,896.68,1.11294627]
[1768003233783,1.03342832,898.49,896.68,1.11294627]
[1768003233985,1.03342832,898.48,896.68,1.11294627]
[1768003234280,1.03342832,898.47,896.68,1.11294627]
[1768003234586,1.03342832,898.46,896.68,1.11294627]
[1768003234786,1.03342832,898.45,896.68,1.11294627]
[1768003235082,1.03342832,898.44,896.67,1.11294627]
[1768003235281,1.03342832,898.43,896.67,1.11294627]
[1768003235488,1.03342832,898.42,896.67,1.11294627]
[1768003235783,1.03342832,898.41,896.67,1.11294627]
[1768003236087,1.03342832,898.4,896.67,1.11294627]
[1768003236282,1.03342832,898.39,896.67,1.11294627]
[1768003236487,1.03342832,898.38,896.67,1.11294627]
[1768003236787,1.03342832,898.37,896.67,1.11294627]
[1768003236983,1.03342832,898.36,896.67,1.11294627]
[1768003237287,1.03342832,898.35,896.67,1.11294627]
[1768003237488,1.03342832,898.34,896.67,1.11294627]
[1768003237688,1.03342832,898.33,896.67,1.11294627]
[1768003237884,1.03342832,898.32,896.67,1.11294627]
[1768003238089,1.03342832,898.31,896.67,1.11294627]
[1768003238385,1.03342832,898.3,896.67,1.11294627]
[1768003238583,1.03342832,898.29,896.67,1.11294627]
[1768003238787,1.03342832,898.28,896.67,1.11294627]
[1768003238987,1.03342832,898.27,896.67,1.11294627]
[1768003239188,1.03342832,898.26,896.67,1.11294627]
[1768003239389,1.03342832,898.25,896.67,1.11294627]
[1768003239589,1.03342832,898.24,896.67,1.11294627]
[1768003239784,1.03342832,898.23,896.66,1.11294627]
[1768003239986,1.03342832,898.22,896.66,1.11294627]
[1768003240184,1.03342832,898.21,896.66,1.11294627]
[1768003240387,1.03342832,898.2,896.66,1.11294627]
[1768003240588,1.03342832,898.19,896.66,1.11294627]
[1768003240789,1.03342832,898.18,896.66,1.11294627]
[1768003240987,1.03342832,898.17,896.66,1.11294627]
[1768003241186,1.03342832,898.16,896.66,1.11294627]
[1768003241385,1.03342832,898.15,896.66,1.11294627]
[1768003241684,1.03342832,898.14,896.66,1.11294627]
[1768003241883,1.03342832,898.13,896.66,1.11294627]
[1768003242088,1.03342832,898.12,896.66,1.11294627]
[1768003242383,1.03342832,898.11,896.66,1.11294627]
[1768003242588,1.03342832,898.1,896.66,1.11294627]
[1768003242788,1.03342832,898.09,896.66,1.11294627]
[1768003242985,1.03342832,898.08,896.66,1.11294627]
[1768003243189,1.03342832,898.07,896.66,1.11294627]
[1768003243385,1.03342832,898.06,896.66,1.11294627]
[1768003243590,1.03342832,898.05,896.66,1.11294627]
[1768003243791,1.03342832,898.04,896.66,1.11294627]
[1768003243989,1.03342832,898.03,896.66,1.11294627]
[1768003244190,1.03342832,898.02,896.67,1.11294627]
[1768003244390,1.03342832,898.01,896.67,1.11294627]
[1768003244687,1.03342832,898.0,896.67,1.11294627]
[1768003244887,1.03342832,897.99,896.67,1.11294627]
[1768003245088,1.03342832,897.98,896.67,1.11294627]
[1768003245286,1.03342832,897.97,896.67,1.11294627]
[1768003245484,1.03342832,897.96,896.67,1.11294627]
[1768003245690,1.03342832,897.95,896.67,1.11294627]
[1768003245887,1.03342832,897.94,896.67,1.11294627]
[1768003246188,1.03342832,897.93,896.67,1.11294627]
[1768003246392,1.03342832,897.92,896.67,1.11294627]
[1768003246591,1.03342832,897.91,896.67,1.11294627]
[1768003246887,1.03342832,897.9,896.67,1.11294627]
[1768003247091,1.03342832,897.89,896.67,1.11294627]
[1768003247293,1.03342832,897.88,896.67,1.11294627]
[1768003247593,1.03342832,897.87,896.67,1.11294627]
[1768003247894,1.03342832,897.86,896.67,1.11294627]
[1768003248089,1.03342832,897.85,896.67,1.11294627]
[1768003248292,2.7843621,898.79,896.67,1.11294627]
[1768003248293,1.03342832,897.84,896.67,1.11294627]
[1768003248490,1.03342832,897.83,896.67,1.11294627]
[1768003248791,1.03342832,897.82,896.67,1.11294627]
[1768003248991,1.03342832,897.81,896.67,1.11294627]
[1768003249298,1.03342832,897.8,896.67,1.11294627]
[1768003249491,1.03342832,897.79,896.67,1.11294627]
[1768003249690,1.03342832,897.78,896.67,1.11294627]
[1768003249894,1.03342832,897.77,896.67,1.11294627]
[1768003250094,2.7843621,898.78,896.67,1.11294627]
[1768003250095,1.03342832,897.76,896.67,1.11294627]
[1768003250295,2.7843621,898.78,896.67,1.11294627]
[1768003250296,1.03342832,897.75,896.67,1.11294627]
[1768003250595,1.03342832,897.74,896.67,1.11294627]
[1768003250792,1.03342832,897.73,896.67,1.11294627]
[1768003250992,1.03342832,897.72,896.67,1.11294627]
[1768003251192,1.03342832,897.71,896.68,1.11294627]
[1768003251493,1.03342832,897.7,896.68,1.11294627]
[1768003251694,1.03342832,897.69,896.68,1.11294627]
[1768003251891,1.03342832,897.68,896.68,1.11294627]
[1768003252092,1.03342832,897.67,896.68,1.11294627]
[1768003252295,1.03342832,897.66,896.68,1.11294627]
[1768003252596,1.03342832,897.65,896.68,1.11294627]
[1768003252797,1.03342832,897.64,896.68,1.11294627]
[1768003252996,2.7843621,898.77,896.59,1.11294627]
[1768003252997,1.03342832,897.63,896.59,1.11294627]
[1768003253197,1.03342832,897.62,896.59,1.11294627]
[1768003253493,1.03342832,897.61,896.59,1.11294627]
[1768003253698,1.03342832,897.6,896.59,1.11294627]
[1768003253898,1.03342832,897.59,896.59,1.11294627]
[1768003254094,1.03342832,897.58,896.59,1.11294627]
[1768003254297,1.03342832,897.57,896.59,1.11294627]
[1768003254497,1.03342832,897.56,896.59,1.11294627]
[1768003254695,2.7843621,898.67,896.59,1.11294627]
[1768003254696,1.03342832,897.55,896.59,1.11294627]
[1768003254894,1.03342832,897.54,896.59,1.11294627]
[1768003255098,1.03342832,897.53,896.59,1.11294627]
[1768003255298,1.03342832,897.52,896.6,1.11294627]
[1768003255497,1.03342832,897.51,896.6,1.11294627]
[1768003255696,1.03342832,897.5,896.6,1.11294627]
[1768003255894,1.03342832,897.49,896.6,1.11294627]
[1768003256095,1.03342832,897.48,896.6,1.11294627]
[1768003256398,1.03342832,897.47,896.6,1.11294627]
[1768003256698,1.03342832,897.46,896.6,1.11294627]
[1768003256898,1.03342832,897.45,896.6,1.11294627]
[1768003257099,1.03342832,897.44,896.61,1.11294627]
[1768003257298,1.03342832,897.43,896.61,1.11294627]
[1768003257598,1.03342832,897.42,896.61,1.11294627]
[1768003257800,1.03342832,897.41,896.61,1.11294627]
[1768003257996,1.03342832,897.4,896.61,1.11294627]
[1768003258296,1.03342832,897.39,896.62,1.11294627]
[1768003258496,1.03342832,897.38,896.62,1.11294627]
[1768003258796,1.03342832,897.37,896.62,1.11294627]
[1768003258998,1.03342832,897.36,896.62,1.11294627]
[1768003259198,1.03342832,897.35,896.62,1.11294627]
[1768003259398,1.03342832,897.34,896.62,1.11294627]
[1768003259597,1.03342832,897.33,896.62,1.11294627]
[1768003259795,1.03342832,897.32,896.62,1.11294627]
[1768003259996,1.03342832,897.31,896.62,1.11294627]
[1768003260200,1.03342832,897.3,896.62,1.11294627]
[1768003260396,1.03342832,897.29,896.62,1.11294627]
[1768003260597,1.03342832,897.28,896.62,1.11294627]
[1768003260797,1.03342832,897.27,896.62,1.11294627]
[1768003260998,1.03342832,897.26,896.62,1.11294627]
[1768003261198,1.03342832,897.25,896.62,1.11294627]
[1768003261497,1.03342832,897.24,896.62,1.11294627]
[1768003261700,1.03342832,897.23,896.62,1.11294627]
[1768003261899,1.03342832,897.22,896.62,1.11294627]
[1768003262103,1.03342832,897.21,896.62,1.11294627]
[1768003262303,1.03342832,897.2,896.62,1.11294627]
[1768003262503,1.03342832,897.19,896.62,1.11294627]
[1768003262705,1.03342832,897.18,896.62,1.11294627]
[1768003263000,1.03342832,897.17,896.62,1.11294627]
[1768003263203,1.03342832,897.16,896.62,1.11294627]
[1768003263404,1.03342832,897.15,896.62,1.11294627]
[1768003263604,1.03342832,897.14,896.62,1.11294627]
[1768003263802,1.03342832,897.13,896.62,1.11294627]
[1768003264004,1.03342832,897.12,896.62,1.11294627]
[1768003264304,1.03342832,897.11,896.63,1.11294627]
[1768003264501,1.03342832,897.1,896.63,1.11294627]
[1768003264802,1.03342832,897.09,896.63,1.11294627]
[1768003265006,2.7843621,898.64,896.63,1.11294627]
[1768003265206,1.03553622,898.63,896.63,1.11294627]
[1768003265403,1.03553622,898.62,896.63,1.11294627]
[1768003265603,1.03553622,898.61,896.63,1.11294627]
[1768003265902,1.03553622,898.6,896.63,1.11294627]
[1768003266105,1.03553622,898.59,896.63,1.11294627]
[1768003266306,1.03553622,898.58,896.63,1.11294627]
[1768003266504,1.03553622,898.57,896.63,1.11294627]
[1768003266704,1.03553622,898.56,896.63,1.11294627]
[1768003266908,1.03553622,898.55,896.63,1.11294627]
[1768003267106,1.03553622,898.54,896.63,1.11294627]
[1768003267305,1.03553622,898.53,896.63,1.11294627]
[1768003267507,1.03553622,898.52,896.63,1.11294627]
[1768003267709,1.03553622,898.51,896.63,1.11294627]
[1768003268007,1.03553622,898.5,896.63,1.11294627]
[1768003268206,1.03553622,898.49,896.64,1.11294627]
[1768003268408,1.03553622,898.48,896.64,1.11294627]
[1768003268612,1.03553622,898.47,896.64,1.11294627]
[1768003268807,1.03553622,898.46,896.64,1.11294627]
[1768003269009,1.03553622,898.45,896.64,1.11294627]
[1768003269316,1.03553622,898.44,896.64,1.11294627]
[1768003269508,1.03553622,898.43,896.64,1.11294627]
[1768003269709,1.03553622,898.42,896.64,1.11294627]
[1768003269906,1.03553622,898.41,896.64,1.11294627]
[1768003270110,1.03553622,898.4,896.64,1.11294627]
[1768003270309,1.03553622,898.39,896.64,1.11294627]
[1768003270511,1.03553622,898.38,896.64,1.11294627]
[1768003270711,1.03553622,898.37,896.64,1.11294627]
[1768003271008,1.03553622,898.36,896.64,1.11294627]
[1768003271208,1.03553622,898.35,896.64,1.11294627]
[1768003271510,1.03553622,898.34,896.64,1.11294627]
[1768003271712,1.03553622,898.33,896.64,1.11294627]
[1768003271908,1.03553622,898.32,896.64,1.11294627]
[1768003272107,2.7843621,898.63,896.48,1.671086]
[1768003272108,1.03553622,898.31,896.65,1.11294627]
[1768003272309,1.03553622,898.3,896.65,1.11294627]
[1768003272612,1.03553622,898.29,896.65,1.11294627]
[1768003272810,1.03553622,898.28,896.65,1.11294627]
[1768003273113,1.03553622,898.27,896.65,1.11294627]
[1768003273410,1.03553622,898.26,896.65,1.11294627]
[1768003273616,1.03553622,898.25,896.65,1.11294627]
[1768003273910,1.03553622,898.24,896.65,1.11294627]
[1768003274114,1.03553622,898.23,896.65,1.11294627]
[1768003274311,1.03553622,898.22,896.65,1.11294627]
[1768003274510,1.03553622,898.21,896.65,1.11294627]
[1768003274713,1.03553622,898.2,896.65,1.11294627]
[1768003274910,1.03553622,898.19,896.65,1.11294627]
[1768003275114,1.03553622,898.18,896.67,1.11294627]
[1768003275414,1.03553622,898.17,896.67,1.11294627]
[1768003275613,1.03553622,898.16,896.67,1.11294627]
[1768003275815,1.03553622,898.15,896.67,1.11294627]
[1768003276012,1.03553622,898.14,896.67,1.11294627]
[1768003276211,1.03553622,898.13,896.67,1.11294627]
[1768003276412,1.03553622,898.12,896.67,1.11294627]
[1768003276617,1.03553622,898.11,896.67,1.11294627]
[1768003276816,1.03553622,898.1,896.67,1.11294627]
[1768003277014,1.03553622,898.09,896.67,1.11294627]
[1768003277314,1.03553622,898.08,896.67,1.11294627]
[1768003277511,1.03553622,898.07,896.67,1.11294627]
[1768003277717,1.03553622,898.06,896.67,1.11294627]
[1768003277918,0.19387403,897.87,896.67,1.11294627]
[1768003278112,1.03553622,897.86,896.67,1.11294627]
[1768003278312,1.03553622,897.85,896.67,1.11294627]
[1768003278616,1.67807586,897.84,896.49,1.671086]
[1768003278814,1.67807586,897.83,896.49,1.671086]
[1768003279017,1.67807586,897.82,896.49,1.671086]
[1768003279318,1.67807586,897.81,896.49,1.671086]
[1768003279516,1.67807586,897.8,896.49,1.671086]
[1768003279816,1.67807586,897.79,896.49,1.671086]
[1768003280016,1.67807586,897.78,896.49,1.671086]
[1768003280315,1.67807586,897.77,896.49,1.671086]
[1768003280512,1.67807586,897.76,896.49,1.671086]
[1768003280825,1.67807586,897.75,896.49,1.671086]
[1768003281013,1.67807586,897.74,896.49,1.671086]
[1768003281217,1.67807586,897.73,896.49,1.671086]
[1768003281417,1.67807586,897.72,896.49,1.671086]
[1768003281613,1.67807586,897.71,896.49,1.671086]
[1768003281815,1.67807586,897.7,896.49,1.671086]
[1768003282014,1.67807586,897.69,896.49,1.671086]
[1768003282216,1.67807586,897.68,896.49,1.671086]
[1768003282513,1.67807586,897.67,896.49,1.671086]
[1768003282816,1.67807586,897.66,896.49,1.671086]
[1768003283017,1.67807586,897.65,896.49,1.671086]
[1768003283217,1.67807586,897.64,896.49,1.671086]
[1768003283415,1.67807586,897.63,896.49,1.671086]
[1768003283615,1.67807586,897.62,896.49,1.671086]
[1768003283814,1.67807586,897.61,896.49,1.671086]
[1768003284020,1.67807586,897.6,896.49,1.671086]
[1768003284219,1.67807586,897.59,896.49,1.671086]
[1768003284417,1.67807586,897.58,896.49,1.671086]
[1768003284615,1.67807586,897.57,896.49,1.671086]
[1768003284819,1.67807586,897.56,896.49,1.671086]
[1768003285016,1.67807586,897.55,896.49,1.671086]
[1768003285320,1.67807586,897.54,896.5,1.671086]
[1768003285518,1.67807586,897.53,896.5,1.671086]
[1768003285719,1.67807586,897.52,896.5,1.671086]
[1768003285915,1.67807586,897.51,896.5,1.671086]
[1768003286120,1.67807586,897.5,896.5,1.671086]
[1768003286320,1.67807586,897.49,896.51,1.671086]
[1768003286517,1.67807586,897.48,896.51,1.671086]
[1768003286718,1.67807586,897.47,896.51,1.671086]
[1768003286921,1.67807586,897.46,896.51,1.671086]
[1768003287121,1.67807586,897.45,896.51,1.671086]
[1768003287420,1.67807586,897.44,896.51,1.671086]
[1768003287621,1.67807586,897.43,896.51,1.671086]
[1768003287921,1.67807586,897.42,896.51,1.671086]
[1768003288216,1.67807586,897.41,896.51,1.671086]
[1768003288520,1.67807586,897.4,896.51,1.671086]
[1768003288720,1.67807586,897.39,896.51,1.671086]
[1768003288918,1.67807586,897.38,896.51,1.671086]
[1768003289117,1.67807586,897.37,896.51,1.671086]
[1768003289318,1.03553622,897.36,896.51,1.671086]
[1768003289520,1.03553622,897.35,896.51,1.671086]
[1768003289721,1.03553622,897.34,896.51,1.671086]
[1768003289922,1.03553622,897.33,896.51,1.671086]
[1768003290119,1.03553622,897.32,896.52,1.671086]
[1768003290322,1.03553622,897.31,896.52,1.671086]
[1768003290523,1.03553622,897.3,896.52,1.671086]
[1768003290720,1.03553622,897.29,896.52,1.671086]
[1768003290919,1.03553622,897.28,896.52,1.671086]
[1768003291124,1.03553622,897.27,896.52,1.671086]
[1768003291325,1.03553622,897.26,896.52,1.671086]
[1768003291524,1.03553622,897.25,896.52,1.671086]
[1768003291722,1.03553622,897.24,896.52,1.671086]
[1768003291926,1.03553622,897.23,896.52,1.671086]
[1768003292124,1.03553622,897.22,896.52,1.671086]
[1768003292322,1.03553622,897.21,896.52,1.671086]
[1768003292526,1.03553622,897.2,896.52,1.671086]
[1768003292724,1.03553622,897.19,896.52,1.671086]
[1768003292922,1.03553622,897.18,896.52,1.671086]
[1768003293124,1.03553622,897.17,896.52,1.671086]
[1768003293322,1.03553622,897.16,896.52,1.671086]
[1768003293620,1.03553622,897.15,896.53,1.671086]
[1768003293822,1.03553622,897.14,896.53,1.671086]
[1768003294022,1.03553622,897.13,896.53,1.671086]
[1768003294221,1.03553622,897.12,896.53,1.671086]
[1768003294424,1.03553622,897.11,896.53,1.671086]
[1768003294726,1.03553622,897.1,896.53,1.671086]
[1768003294923,1.03553622,897.09,896.53,1.671086]
[1768003295225,1.03553622,897.08,896.53,1.671086]
[1768003295423,1.03553622,897.07,896.53,1.671086]
[1768003295626,1.03553622,897.06,896.53,1.671086]
[1768003295823,0.19387403,897.87,896.53,1.671086]
[1768003296027,1.67891834,897.86,896.53,1.671086]
[1768003296227,1.67891834,897.85,896.54,1.671086]
[1768003296524,1.67891834,897.84,896.54,1.671086]
[1768003296727,1.67891834,897.83,896.54,1.671086]
[1768003296924,1.67891834,897.82,896.54,1.671086]
[1768003297126,1.67891834,897.81,896.55,1.671086]
[1768003297327,1.67891834,897.8,896.55,1.671086]
[1768003297530,1.67891834,897.79,896.55,1.671086]
[1768003297729,1.67891834,897.78,896.55,1.671086]
[1768003297927,1.67891834,897.77,896.55,1.671086]
[1768003298229,1.67891834,897.76,896.55,1.671086]
[1768003298430,1.67891834,897.75,896.55,1.671086]
[1768003298628,1.67891834,897.74,896.55,1.671086]
[1768003298830,1.67891834,897.73,896.55,1.671086]
[1768003299130,1.67891834,897.72,896.55,1.671086]
[1768003299430,1.67891834,897.71,896.55,1.671086]
[1768003299627,1.67891834,897.7,896.55,1.671086]
[1768003299826,1.67891834,897.69,896.55,1.671086]
[1768003300032,1.67891834,897.68,896.55,1.671086]
[1768003300329,1.67891834,897.67,896.55,1.671086]
[1768003300530,1.67891834,897.66,896.55,1.671086]
[1768003300832,1.67891834,897.65,896.55,1.671086]
[1768003301032,1.67891834,897.64,896.55,1.671086]
[1768003301228,1.67891834,897.63,896.55,1.671086]
[1768003301428,1.67891834,897.62,896.55,1.671086]
[1768003301633,1.67891834,897.61,896.55,1.671086]
[1768003301834,1.67891834,897.6,896.55,1.671086]
[1768003302131,1.67891834,897.59,896.55,1.671086]
[1768003302429,1.67891834,897.58,896.55,1.671086]
[1768003302629,1.67891834,897.57,896.55,1.671086]
[1768003302835,1.67891834,897.56,896.55,1.671086]
[1768003303133,1.67891834,897.55,896.55,1.671086]
[1768003303333,1.67891834,897.54,896.55,1.671086]
[1768003303533,1.67891834,897.53,896.55,1.671086]
[1768003303833,1.67891834,897.52,896.55,1.671086]
[1768003304029,1.67891834,897.51,896.55,1.671086]
[1768003304229,1.67891834,897.5,896.55,1.671086]
[1768003304432,1.67891834,897.49,896.55,1.671086]
[1768003304631,1.67891834,897.48,896.55,1.671086]
[1768003304834,1.67891834,897.47,896.55,1.671086]
[1768003305031,1.67891834,897.46,896.55,1.671086]
[1768003305237,1.67891834,897.45,896.55,1.671086]
[1768003305536,1.67891834,897.44,896.55,1.671086]
[1768003305734,1.67891834,897.43,896.55,1.671086]
[1768003305936,1.67891834,897.42,896.55,1.671086]
[1768003306137,1.67891834,897.41,896.55,1.671086]
[1768003306432,1.67891834,897.4,896.55,1.671086]
[1768003306637,1.67891834,897.39,896.55,1.671086]
[1768003306834,1.67891834,897.38,896.55,1.671086]
[1768003307034,1.67891834,897.37,896.55,1.671086]
[1768003307336,1.67891834,897.36,896.55,1.671086]
[1768003307534,1.67891834,897.35,896.55,1.671086]
[1768003307738,0.64309016,897.34,896.55,1.671086]
[1768003308037,1.67932614,897.33,896.55,1.671086]
[1768003308235,1.03623598,897.32,896.55,1.671086]
[1768003308537,1.03623598,897.31,896.55,1.671086]
[1768003308736,1.69071954,897.3,896.52,1.671086]
[1768003308937,1.03623598,897.29,896.52,1.671086]
[1768003309134,1.03623598,897.28,896.52,1.671086]
[1768003309336,1.03623598,897.27,896.52,1.671086]
[1768003309536,1.03623598,897.26,896.52,1.671086]
[1768003309740,1.03623598,897.25,896.52,1.671086]
[1768003310037,1.03623598,897.24,896.52,1.671086]
[1768003310238,1.03623598,897.23,896.52,1.671086]
[1768003310443,1.03623598,897.22,896.52,1.671086]